Cogmind - Beta 9.4 @@@ ROGUE MODE // 2020.02.04 @ 17:41:39 Player: 277 Result: Self-destructed Performance ------------- Evolutions (1) 500 Regions Visited (3) 600 Robots Destroyed (26) 130 Value Destroyed (417) 417 Prototype IDs (0) 0 Alien Tech Used (0) 0 Bonus (128) 128 TOTAL SCORE: 1775 Bonus ------- Follower Combat Kills 128 Cogmind --------- Core Integrity 316/400 Matter 300/300 Energy 265/265 System Corruption 0% Temperature Cool (0) Movement Treading (180) Ox1 Location -9/Materials Parts ------- > --- POWER (1) -------- Improved Ion Engine > --- PROPULSION (2) --- Light Treads Light Treads > --- UTILITY (4) ------ High-capacity Storage Unit Visual Processing Unit Propulsion Shielding Light Armor Plating > --- WEAPON (2) ------- Mace > --- INVENTORY (12) --- Improved Ion Engine Improved Heat Sink Improved Heat Sink Large Battery (300) High-capacity Matter Pod (200) Structural Scanner Light Armor Plating Beam Rifle Particle Gun Mining Laser Peak State ------------ > --- POWER ------------ Makeshift Power Source > --- PROPULSION ------- Light Treads Light Treads > --- UTILITY ---------- High-capacity Storage Unit Visual Processing Unit Makeshift Terrain Scanner Propulsion Shielding > --- WEAPON ----------- Beam Rifle Beamcaster > --- INVENTORY -------- Improved Ion Engine Improved Ion Engine Improved Heat Sink Large Battery High-capacity Matter Pod Structural Scanner Propulsion Shielding Light Armor Plating Mining Laser [Rating: 22] Favorites ----------- Power Ion Engine Engine Ion Engine Propulsion Aluminum Leg Treads Light Treads Leg Aluminum Leg Utility High-capacity Storage Unit Device Makeshift Terrain Scanner Storage High-capacity Storage Unit Processor Visual Processing Unit Protection Propulsion Shielding Weapon Medium Laser Energy Gun Medium Laser Ballistic Gun Assault Rifle Impact Weapon Mace Build | -11 -10 -10 -9 ------- Run | Scr Mat Min Mat Slots Evolved 2 | . . . 2 Power . | . . . . Propulsion . | . . . . Utility 2 | . . . 2 Weapon . | . . . . Parts Attached 28 | 5 4 8 11 Power 5 | 1 1 1 2 Engine 5 | 1 1 1 2 Core . | . . . . Reactor . | . . . . Propulsion 9 | 2 1 4 2 Treads 2 | . . . 2 Leg 7 | 2 1 4 . Wheel . | . . . . Hover . | . . . . Flight . | . . . . Utility 6 | . 2 . 4 Device 1 | . . . 1 Storage 1 | . 1 . . Processor 1 | . . . 1 Hackware . | . . . . Protection 3 | . 1 . 2 Artifact . | . . . . Weapon 8 | 2 . 3 3 Energy Gun 5 | . . 3 2 Energy Cannon . | . . . . Ballistic Gun 2 | 2 . . . Ballistic Cannon . | . . . . Launcher . | . . . . Special Weapon . | . . . . Impact Weapon 1 | . . . 1 Slashing Weapon . | . . . . Piercing Weapon . | . . . . Special Melee Weapon . | . . . . Unidentified Prototypes . | . . . . Parts Lost 10 | . . 5 5 Power 2 | . . 1 1 Propulsion . | . . . . Utility 1 | . . . 1 Weapon 7 | . . 4 3 Highest Loss Streak 3 | . . 2 3 Average Slot Usage (%) 89 | . 88 90 90 Engine 11 | . 14 13 7 Treads 3 | . . . 17 Leg 22 | . 28 28 4 Device 2 | . . . 10 Storage 12 | . 11 14 11 Processor 2 | . . . 11 Protection 11 | . 5 14 11 Energy Gun 15 | . . 19 16 Ballistic Gun 5 | . 28 . . Naked Turns . | . . . . Heaviest Build 46 | 9 42 43 46 Greatest Support 40 | 20 20 20 40 Greatest Overweight (x) 3 | . 2 2 3 Average Overweight (x) 1 | . 1 1 1 Largest Inventory Capacity 12 | 4 12 12 12 Average Capacity 11 | 4 10 12 12 Most Carried 12 | 2 9 12 11 Average Carried 9 | 1 4 10 9 Final Capacity 12 | 4 12 12 12 Final Carried 10 | 2 9 10 10 Class Distribution -------------------- 78% | Mutant 21% | Scavenger-Mutant Dominant Class ---------------- Mutant | -10/Materials Mutant | -10/Mines Scavenger-Mutant | -9/Materials Resources | -11 -10 -10 -9 ----------- Run | Scr Mat Min Mat Matter Collected 1070 | 222 595 133 120 Remotely . | . . . . Salvage Created 734 | . 360 120 254 Parts 59 | . 24 9 26 Haulers Intercepted 2 | . 2 . . Recyclers Shooed . | . . . . Parts Field Recycled . | . . . . Retrieved Matter . | . . . . Parts Self-Destructed . | . . . . Prevented . | . . . . Kills | -11 -10 -10 -9 ------- Run | Scr Mat Min Mat Combat Hostiles Destroyed 16 | . 2 5 9 Melee 1 | . . . 1 Guns 15 | . 2 5 8 Classes Destroyed 9 | . 6 2 1 Worker 2 | . . 1 1 Builder 2 | . 2 . . Hauler 2 | . 2 . . Recycler 2 | . 2 . . Mechanic 1 | . 1 . . Watcher 1 | . 1 . . Swarmer 10 | . . 4 6 Grunt 3 | . 2 1 . Sentry 3 | . . . 3 Best Kill Streak 4 | . 4 2 3 Combat Bots Only 3 | . 2 2 3 Max Kills in Single Turn 1 | . 1 1 1 Gunslinging . | . . . . Exploded . | . . . . Melee 1 | . . . 1 Uniques/NPCs Destroyed . | . . . . Combat | -11 -10 -10 -9 -------- Run | Scr Mat Min Mat Damage Taken 1528 | . 242 671 615 Core 265 | . 21 160 84 Absorbed by Shields . | . . . . Core Remaining (%) 63 | 100 . 27 . Volleys Fired 104 | . 35 42 27 Largest 2 | . 2 2 2 Hottest 131 | . 40 115 131 Shots Fired 167 | . 70 54 43 Gun 167 | . 70 54 43 Cannon . | . . . . Launcher . | . . . . Special . | . . . . Kinetic 85 | . 70 15 . Thermal 82 | . . 39 43 Explosive . | . . . . Electromagnetic . | . . . . Robot Hit Streak 7 | . 7 6 7 Robot Miss Streak 6 | . 3 5 6 Penetration Max . | . . . . Secondary Targets 1 | . 1 . . Max Gunslinging Chain 1 | . 1 . . Shots Hit Robots 97 | . 47 23 27 Core Hits 38 | . 18 9 11 Critical Hits . | . . . . Critical Kills . | . . . . Critical Parts Destroyed . | . . . . Melee Attacks 3 | . . . 3 Impact 3 | . . . 3 Slashing . | . . . . Piercing . | . . . . Sneak Attacks . | . . . . Combat Hostiles . | . . . . Follow-up Attacks . | . . . . Damage Inflicted 1413 | . 589 344 480 Guns 1362 | . 589 344 429 Cannons . | . . . . Explosions . | . . . . Melee 51 | . . . 51 Ramming . | . . . . Kinetic 658 | . 589 69 . Thermal 704 | . . 275 429 Explosive . | . . . . Electromagnetic . | . . . . Impact 51 | . . . 51 Slashing . | . . . . Piercing . | . . . . Highest Corruption . | . . . . Average Corruption . | . . . . Corruption Purged . | . . . . Overload Shots . | . . . . Overflow Damage . | . . . . Projectiles . | . . . . Explosions . | . . . . Melee . | . . . . Knockbacks . | . . . . Impact . | . . . . Kinetic . | . . . . Secondary . | . . . . Self-Inflicted Damage . | . . . . Shots . | . . . . Rammed . | . . . . Targets Rammed . | . . . . Kicked . | . . . . Crushed . | . . . . Highest Temperature 234 | . 5 134 234 Average Temperature 61 | . 3 58 72 Received Heat Transfer 480 | . 162 210 108 Siege Activations . | . . . . Robots Corrupted . | . . . . Combat Hostiles . | . . . . Parts Fried . | . . . . Impact Corruptions . | . . . . Robots Melted . | . . . . Combat Hostiles . | . . . . Parts Melted 2 | . . . 2 Heat Transferred 1702 | . . 740 962 Parts Sabotaged . | . . . . Parts Stolen . | . . . . Parts Stripped . | . . . . Power Chain Reactions . | . . . . Missiles Intercepted . | . . . . Alert | -11 -10 -10 -9 ------- Run | Scr Mat Min Mat Peak Influence 240 | . 117 168 240 Average Influence 82 | . 70 71 129 Maximum Alert Level 1 | . . . 1 Low Security (%) 95 | 100 100 100 80 Level 1 4 | . . . 20 Level 2 . | . . . . Level 3 . | . . . . Level 4 . | . . . . Level 5 . | . . . . High Security . | . . . . Max Security . | . . . . Squads Dispatched 1 | . 1 . . Investigation . | . . . . Extermination . | . . . . Reinforcement 1 | . 1 . . Assault . | . . . . Garrison . | . . . . Intercept . | . . . . Construction Impeded . | . . . . Haulers Reinforced . | . . . . Stealth | -11 -10 -10 -9 --------- Run | Scr Mat Min Mat Distress Signals . | . . . . Communications Jammed . | . . . . Distress Signals . | . . . . Times Spotted 31 | . 6 12 13 Peak Tracking Total 4 | . 2 3 4 Tactical Retreats 2 | . . 1 1 Traps | -11 -10 -10 -9 ------- Run | Scr Mat Min Mat Traps Triggered . | . . . . Indirectly . | . . . . Trap Hack Attempts . | . . . . Triggered . | . . . . Disarmed . | . . . . Reprogrammed . | . . . . Reused . | . . . . Traps Extracted . | . . . . Installed . | . . . . Triggered . | . . . . Machines | -11 -10 -10 -9 ---------- Run | Scr Mat Min Mat Machines Disabled 1 | . . . 1 Max in Single Turn 1 | . . . 1 Machines Sabotaged . | . . . . Garrisons Compromised . | . . . . Overloaded Fab Kills . | . . . . Fab Network Shutdowns . | . . . . Hacking | -11 -10 -10 -9 --------- Run | Scr Mat Min Mat Machines Accessed 5 | . 3 . 2 Terminals 3 | . 2 . 1 Fabricators . | . . . . Repair Stations 1 | . 1 . . Recycling Units 1 | . . . 1 Scanalyzers . | . . . . Garrison Access . | . . . . Total Hacks 13 | . 9 . 4 Successful 10 | . 8 . 2 Failed 3 | . 1 . 2 Catastrophic . | . . . . Database Lockouts . | . . . . Manual 11 | . 7 . 4 Terminals 9 | . 7 . 2 Fabricators . | . . . . Repair Stations 2 | . 2 . . Recycling Units 2 | . . . 2 Scanalyzers . | . . . . Garrison Access . | . . . . Terminal Hacks . | . . . . Fabricator Hacks . | . . . . Repair Station Hacks 2 | . 2 . . Scan Component 1 | . 1 . . Repair 1 | . 1 . . Recycling Unit Hacks . | . . . . Scanalyzer . | . . . . Garrison Access Hacks . | . . . . Unauthorized Hacks 19 | . 13 . 6 Terminals 7 | . 6 . 1 Track 3 | . 2 . 1 Assimilate 1 | . 1 . . Botnet 2 | . 2 . . Operators 1 | . 1 . . Fabricators . | . . . . Repair Stations . | . . . . Recycling Units 1 | . . . 1 Mask 1 | . . . 1 Scanalyzers . | . . . . Garrison Access . | . . . . Data Cores Recovered . | . . . . Used . | . . . . Hacking Detections 5 | . 3 . 2 Full Trace Events . | . . . . Feedback Events . | . . . . Feedback Blocked . | . . . . Robot Schematics Acquired . | . . . . Robots Built . | . . . . Matter . | . . . . Time . | . . . . Total Robot Build Rating . | . . . . Part Schematics Acquired . | . . . . Parts Built . | . . . . Matter . | . . . . Time . | . . . . Total Part Build Rating . | . . . . Parts Repaired 1 | . 1 . . Time 26 | . 26 . . Parts Recycled . | . . . . Recycled Matter . | . . . . Retrieved Matter . | . . . . Retrieved Components . | . . . . Parts Scanalyzed . | . . . . Part Schematics Acquired . | . . . . Parts Damaged . | . . . . Bothacking | -11 -10 -10 -9 ------------ Run | Scr Mat Min Mat Used RIF Installer . | . . . . Robots Hacked . | . . . . Non-combat . | . . . . Combat . | . . . . Robot Hacks Applied . | . . . . Relay Couplers Released . | . . . . Robots Rewired . | . . . . Allies Hacked . | . . . . Hacks Repelled . | . . . . Allies | -11 -10 -10 -9 -------- Run | Scr Mat Min Mat Total Allies 5 | . . 5 . Largest Group 4 | . . 4 4 Highest-Rated Group 71 | . . 71 71 Highest-Rated Ally 31 | . . 31 31 Total Orders . | . . . . Ally Attacks 46 | . . 33 13 Total Damage 550 | . . 414 136 Kills 9 | . . 7 2 Allies Corrupted . | . . . . Allies Melted . | . . . . Intel | -11 -10 -10 -9 ------- Run | Scr Mat Min Mat Robot Analysis Total . | . . . . Derelict Logs Recovered 2 | . . 2 . Drone Launches . | . . . . Drone Recoveries . | . . . . Exploration | -11 -10 -10 -9 ------------- Run | Scr Mat Min Mat Turns Passed 1991 | 53 364 1144 430 Spaces Moved 985 | 39 133 634 179 Core 4 | 4 . . . Treads 129 | . . . 129 Legs 852 | 35 133 634 50 Wheels . | . . . . Hover . | . . . . Flight . | . . . . Fastest Speed 50 | 50 120 150 150 Average Speed 161 | 112 162 161 171 Slowest Speed 210 | 120 180 180 210 Overloaded Moves . | . . . . Propulsion Burnouts . | . . . . Robots Hopped . | . . . . Cave-ins Triggered . | . . . . Exploration Rate (%) 38 | 4 30 97 21 Regions Visited 3 Branch Regions 1 Pre-discovered Areas . | . . . . Known Exits Taken . | . . . . Unknown Exits Taken 3 | 1 1 1 . Scrap Searched 3 | . . 3 . Spaces Dug . | . . . . Terrain Destroyed . | . . . . Melee . | . . . . Projectile . | . . . . AOE . | . . . . Actions | -11 -10 -10 -9 --------- Run | Scr Mat Min Mat Total 1207 | 45 209 700 253 Wait 60 | . 30 10 20 Move 982 | 38 132 633 179 Hop . | . . . . Pick Up 19 | 2 7 3 7 Fast Attach 15 | 5 2 3 5 Attach 5 | . . 1 4 Detach . | . . . . Swap 8 | . 2 4 2 Drop 11 | . 1 4 6 Fire 104 | . 35 42 27 Melee 3 | . . . 3 Ram . | . . . . Kick . | . . . . Crush . | . . . . Escape Stasis . | . . . . Rewire . | . . . . Trap . | . . . . Miscellaneous . | . . . . Route ------- -11/Scrapyard -10/Materials -10/Mines (discovered 2 exits: *Mat x2) -9/Materials (discovered 1 exit: Min) History --------- Turn | Location | Event 33 | -11/Scrapyard | Discovered new exit (range 13) 54 | -11/Scrapyard | Entered Materials 301 | -10/Materials | Build established: Mutant 338 | -10/Materials | Discovered new exit (range 16) 382 | -10/Materials | Repaired Ion Engine 418 | -10/Materials | Entered Mines 430 | -10/Mines | Met a Derelict bent on vengeance 739 | -10/Mines | Discovered new exit (range 8) 898 | -10/Mines | Core integrity fell below 50% 946 | -10/Mines | Discovered new exit (range 16) 1038 | -10/Mines | Assisted by bots powering up and referring to "LRC-V3" 1077 | -10/Mines | Learned 2 Materials zone layouts 1562 | -10/Mines | Entered Materials 1562 | -9/Materials | Accompanied by 4 allies 1562 | -9/Materials | Evolved 2 slots: Utility x2 1563 | -9/Materials | Identified exit to Mines 1567 | -9/Materials | Led the pair of lost Derelicts to an unsafe place 1839 | -9/Materials | Build established: Scavenger-Mutant 1992 | -9/Materials | Self-destructed Last Messages --------------- 01954_ Beamcaster destroyed. 01956_ U-05 Engineer builds a Door. 01957_ Y-45 Defender destroyed. 01960_ K-01 Serf collects debris. 01960_ Acquired 20 matter. 01963_ K-01 Serf collects debris. 01964_ Mak. Terrain Scanner destroyed. 01966_ K-01 Serf collects debris. 01970_ Y-45 Defender destroyed. 01972_ K-01 Serf collects debris. 01977_ Acquired Lgt. Armor Plating. 01978_ Acquired 10 matter. 01979_ K-01 Serf collects debris. 01983_ Dropped Imp. Ion Engine. 01985_ Acquired Beam Rifle. 01986_ K-01 Serf collects debris. 01986_ R-06 Scavenger collects Lgt. Armor Plating. 01988_ Acquired 10 matter. 01990_ K-01 Serf collects debris. 01991_ R-06 Scavenger collects Hvy. Assault Rifle. Map ----- +----------------------------------------------------+ | ??????????????????????????????????????#??????#??## | | ??????????????????????????????????????#????#?#???# | | ????????????????????????????????????? ???????????# | | ???????????????????????????????????????########### | | ????????????????????????????????????????# # | | ????????????????????????????????????????# # | | ????????????????????????????????????????#/ # | | ??????????????????????????????????? #?#// # | | ??????????????????????????????????# ??# # | | ??????????????????????????????????/ #?# """ # | | ??????????????????????????????????# #?# """ # | | ??????????????????????????????????# ### """ # | | ?????????????????????????#????????# #?# # | | ???????????????????????????#??????# #######+#### | | ??????????????????????#??? ???????# # # | | ????????????????????????????? ????# # # | | ??????????????????????????? ????"?+ # + | | ??????????????? ??? ? ? ??????? ? # # # | | ???????????????? ?????????????????# # # """ | | ??????????????#????????????? ???# # # """ | | ?????????????#???????????????? ???# # # """ | | ????????????????????????#????????## # # """ | | ???????????????? ????#######?????# ###### """ | | ???????????????? "??# ####### ###### | | ????????????#??? """ # * % | | ??????????????#?? "" + !@%kr """ | | ??????????????????????# =%[ "" | | ??????????????????????# | ########+####### """ | | ????????????????? ????## *%##????? ?? ?????# """ | | ???????????????????????# !##??????????????# """ | | ???????????????????????# #???? ??? ??????# | | ???????????????????????# #???????? ?? ??# | | ????????????? ????? ???# #??????????"??### """ | | ???????????????????????# #???#???????????? """ | | ??????????? ???????????# #???????? ""????? """ | | ???????????????????#??? / ???????????????? "??? | | ??????????????????? ??? ?#?????????#???? "??? | | ?????????????????????? ?????#?????????? ??? | | ?????????????????????? ???????????????? ??? | | ?????????????????????## ???????????????? "??? | | ????????????????#?????###+##?????#??? ?????? ???? | | ?????????????????????????????????????????????????? | | ?????????????????????? ??????????????????????????? | | ??????????????????????????? ?????????????????????? | | ????????????????????????????"????????????????????? | | ?????????????????????????????????????????????????? | | ?????????????????????????????????????????????????? | | ?????????????????????????????????????????????????? | | ?????????????????????????????????????????????????? | | ?????????????????????????????????????????????????? | +----------------------------------------------------+ Best States ------------- Heat Dissipation 28 Energy Generation 15 Energy Capacity 265 Matter Stores 300 Matter Capacity 300 Sight Range 18 Terrain Scan Range 18 Terrain Scan Density 10 Armor Coverage 150 Propulsion Shielding 33 Evasion (%) 40 Recoil Reduction 2 Item Schematics ----------------- None Robot Schematics ------------------ None Fabricated ------------ Nothing Alien Tech Used ----------------- None Achievements -------------- None Challenges ------------ None Game ------ Seed DeuteriumSigixSheargun Manual? 0 Play Time 00:19:32 Cumulative 178.1 hours Start 2020.02.02 @ 13:07:18 End 2020.02.04 @ 17:41:39 Sessions 3 Manual Loads 0 Difficulty Rogue Special Mode None Game No. 120 Rogue 120 Adventurer 0 Explorer 0 Win Type - Total 1 Types 1/0/0/0/0/0/0 Lore% 50 Gallery% 66 Achievement% 48 Wizard Run 0 Options --------- ASCII 0 Keyboard 0 Movement Mouse Keybinds 0 Fullscreen 1 Font 18/SmallcapsGlow Map View 76x50 Tactical HUD 1 Map Filters NONE Filters NONE Steam 1 RUN: 229e5627-15c3-4c90-9cb1-58982800fe01